fUSD/lending_fUSD_20240423
["ID","MTS","AMOUNT","RATE_DAILY","PERIOD"]
[323357312,1713911485539,-969.0,0.00012954,2]
[323357313,1713911485549,-462.0,0.00012954,2]
[323357314,1713911485558,-1227.0,0.00012954,2]
[323357315,1713911485568,-437.0,0.00012954,2]
[323357316,1713911485577,-1858.0,0.00012954,2]
[323357317,1713911485586,-257.0,0.00012954,2]
[323357318,1713911485596,-807.0,0.00012954,2]
[323357319,1713911485606,-962.808138,0.0001299,2]
[323357320,1713911485620,-1250.7647795,0.0001299,2]
[323357321,1713911485630,-8887.2358029,0.0001299,2]
[323357322,1713911485639,-816.0037288,0.00012991,2]
[323357323,1713911485649,-669.1993196,0.00012991,2]
[323357324,1713911485659,-522.3949105,0.00012991,2]
[323357325,1713911485668,-375.5905013,0.00012991,2]
[323357326,1713911485677,-1060.0541101,0.00012991,2]
[323357327,1713911485687,-869.3434408,0.00012991,2]
[323357328,1713911485698,-678.6327714,0.00012991,2]
[323357329,1713911485707,-487.9221021,0.00012991,2]
[323357330,1713911485717,-7534.3325132,0.00012991,2]
[323357331,1713911485727,-6181.4292235,0.00012991,2]
[323357332,1713911485736,-4828.5259337,0.00012991,2]
[323357333,1713911485746,-3475.622644,0.00012991,2]
[323357334,1713911485755,-3110.59577047,0.00012999,2]
[323357335,1713911485764,-150.0,0.00012999,2]
[323357336,1713911485773,-1851503.47260942,0.00013,2]
[323357337,1713911486198,-2066.21856474,0.00013,2]
[323357338,1713911486209,-690.0,0.00013,2]
[323357339,1713911486237,-500.0,0.00010958,2]
[323357340,1713911486246,-4329.15087214,0.00013,2]
[323357341,1713911486298,-500.0,0.00011506,2]
[323357342,1713911486307,-658.98,0.00012876,2]
[323357343,1713911486316,-610.0,0.00012954,2]
[323357344,1713911486325,-1390.3285,0.00013,2]
[323357345,1713911486368,-550.955965,0.00013,2]
[323357346,1713911486975,-666.16189996,0.00010554,2]
[323357347,1713911487012,-99333.83810004,0.00010554,2]
[323357348,1713911487022,-500.0,0.00010958,2]
[323357349,1713911487031,-500.0,0.00010958,2]
[323357350,1713911487040,-500.0,0.00010958,2]
[323357351,1713911487050,-500.0,0.00010958,2]
[323357352,1713911487059,-303.14775704,0.00011232,2]
[323357353,1713911487068,-500.0,0.00011232,2]
[323357354,1713911487078,-553.34,0.00011232,2]
[323357355,1713911487087,-500.0,0.00011232,2]
[323357356,1713911487096,-500.0,0.00011506,2]
[323357357,1713911487105,-500.0,0.0001178,2]
[323357358,1713911487114,-291.26,0.0001178,2]
[323357359,1713911487126,-500.0,0.00012054,2]
[323357360,1713911487135,-500.0,0.00012328,2]
[323357361,1713911487145,-500.0,0.00012602,2]
[323357362,1713911487155,-500.0,0.00012876,2]
[323357363,1713911487164,-733497.19985768,0.00013,2]
[323357364,1713911487192,-242.40222207,0.00011232,2]
[323357365,1713911487203,-150.27337199,0.00013,2]
[323357366,1713911487219,-37042.81570225,0.00013,2]
[323357383,1713912632321,-489.82813162,8.219e-05,2]
[323357384,1713912632332,-354.76186838,8.219e-05,2]
[323357385,1713912632342,-859.27736228,8.512e-05,2]
[323357386,1713912632354,-1474.09241909,8.512e-05,2]
[323357387,1713912632365,-510.04241426,8.512e-05,2]
[323357388,1713912632376,-364.18813852,8.512e-05,2]
[323357389,1713912632392,-1087.10900317,8.512e-05,2]
[323357390,1713912632437,-3549.66154191,8.512e-05,2]
[323357391,1713912632552,-3002.23633276,8.512e-05,2]
[323357392,1713912632565,-9313.21597719,8.512e-05,2]
[323357393,1713912632576,-2723.75840732,8.512e-05,2]
[323357394,1713912632596,-8542.89999,8.512e-05,2]
[323357409,1713912638211,-3093.80000001,8.512e-05,2]
[323357421,1713912638326,-3713.37619975,8.512e-05,2]
[323357422,1713912638338,-5984.0,8.512e-05,2]
[323357423,1713912638379,-502021.51429782,8.512e-05,2]
[323357424,1713912638388,-12957.4477666,8.512e-05,2]
[323357425,1713912638397,-717163.84756221,8.513e-05,2]
[323357426,1713912638433,-358.33485164,8.513e-05,2]
[323357427,1713912638488,-573.2828905,8.513e-05,2]
[323357455,1713912640227,-339.25813426,8.513e-05,2]
[323357456,1713912640288,-807.724,8.513e-05,2]
[323357457,1713912640299,-802.9568297,8.513e-05,2]
[323357458,1713912640311,-399.89070069,8.513e-05,2]
[323357459,1713912640339,-652.20074213,8.513e-05,2]
[323357460,1713912640351,-547.40182796,8.513e-05,2]
[323357461,1713912640364,-322.22500001,8.513e-05,2]
[323357462,1713912640376,-7225.95188826,8.513e-05,2]
[323357463,1713912640394,-617.42097586,8.513e-05,2]
[323357464,1713912640422,-5024.67506042,8.513e-05,2]
[323357465,1713912640433,-1163.68068873,8.513e-05,2]
[323357466,1713912640445,-505.53116172,8.513e-05,2]
[323357467,1713912640470,-2125.22583446,8.513e-05,2]
[323357468,1713912640502,-688.15196471,8.513e-05,2]
[323357469,1713912640559,-631.33700009,8.513e-05,2]
[323357470,1713912640571,-345.59999998,8.513e-05,2]
[323357471,1713912640581,-680.51216495,8.513e-05,2]
[323357472,1713912640593,-389.72999925,8.513e-05,2]
[323357478,1713912643260,-1063.75306847,8.513e-05,2]
[323357479,1713912643269,-157.47,9.875e-05,2]
[323357480,1713912643279,-157.47,9.925e-05,2]
[323357481,1713912643288,-250.0,0.00010183,2]
[323357482,1713912643298,-173.35,0.00010201,2]
[323357483,1713912643307,-938.56,0.00010282,2]
[323357484,1713912643316,-5046.31865584,0.0001031,2]
[323357485,1713912643357,-4647.97014501,0.0001031,2]
[323357486,1713912643373,-690.69,0.0001031,2]
[323357487,1713912643384,-4540.0,0.0001031,2]
[323357488,1713912643397,-489.23716,0.0001031,2]
[323357489,1713912643408,-109.20403915,0.0001031,2]
[323357490,1713912643419,-499.99,0.0001031,2]
[323357491,1713912643429,-127.1799186,0.00010353,2]
[323357492,1713912643442,-2882.0,0.00010353,2]
[323357493,1713912643455,-803.67465123,0.00010353,2]
[323357494,1713912643467,-1066.32182804,0.00010353,2]
[323357495,1713912643531,-486.31780213,0.00010353,2]
[323357496,1713912643543,-610.36,0.00010373,2]
[323357497,1713912643552,-290.97,0.0001039,2]
[323357498,1713912643563,-844.59,0.00010482,2]
[323357499,1713912643573,-150.0,0.00010521,2]
[323357500,1713912643583,-245000.0,0.00010554,2]
[323357501,1713912643594,-153.6,0.00010613,2]
[323357502,1713912643604,-262.91224085,0.00010954,2]
[323357503,1713912643613,-1240.66300341,0.00010955,2]
[323357504,1713912643623,-6005.40001034,0.00010955,2]
[323357505,1713912643632,-32727.32987367,0.00010955,2]
[323357506,1713912643641,-1502.55981792,0.00010955,2]
[323357507,1713912643650,-1266.47293993,0.00010955,2]
[323357508,1713912643659,-806.15697308,0.00010957,2]
[323357509,1713912643668,-500.0,0.00010958,2]
[323357510,1713912643677,-513.05766045,0.00010958,2]
[323357511,1713912643687,-500.0,0.00010958,2]
[323357512,1713912643698,-500.0,0.00010958,2]
[323357513,1713912643707,-500.0,0.00010958,2]
[323357514,1713912643717,-500.0,0.00010958,2]
[323357515,1713912643727,-500.0,0.00010958,2]
[323357516,1713912643736,-500.0,0.00010958,2]
[323357517,1713912643747,-500.0,0.00010958,2]
[323357518,1713912643758,-500.0,0.00010958,2]
[323357519,1713912643768,-500.0,0.00010958,2]
[323357520,1713912643779,-500.0,0.00010958,2]
[323357521,1713912643789,-500.0,0.00010958,2]
[323357522,1713912643798,-500.0,0.00010958,2]
[323357524,1713912643807,-500.0,0.00010958,2]
[323357526,1713912643816,-500.0,0.00010958,2]
[323357527,1713912643827,-500.0,0.00010958,2]
[323357528,1713912643836,-500.0,0.00010958,2]
[323357529,1713912643845,-500.0,0.00010958,2]
[323357530,1713912643855,-500.0,0.00010958,2]
[323357532,1713912643864,-500.0,0.00010958,2]
[323357533,1713912643874,-500.0,0.00010958,2]
[323357534,1713912643883,-500.0,0.00010958,2]
[323357535,1713912643893,-500.0,0.00010958,2]
[323357536,1713912643902,-500.0,0.00010958,2]
[323357537,1713912643911,-416.74125668,0.00010958,2]
[323357538,1713912643921,-500.0,0.00010958,2]
[323357539,1713912643930,-500.0,0.00010958,2]
[323357540,1713912643939,-500.0,0.00010958,2]
[323357541,1713912643949,-524.29,0.00010958,2]
[323357542,1713912643961,-500.0,0.00010958,2]
[323357543,1713912643970,-500.0,0.00010958,2]
[323357544,1713912643980,-500.0,0.00010958,2]
[323357545,1713912643990,-500.0,0.00010958,2]
[323357546,1713912644001,-500.0,0.00010958,2]
[323357547,1713912644011,-500.0,0.00010958,2]
[323357548,1713912644020,-500.0,0.00010958,2]
[323357549,1713912644031,-500.0,0.00010958,2]
[323357550,1713912644043,-500.0,0.00010958,2]
[323357551,1713912644052,-500.0,0.00010958,2]
[323357552,1713912644061,-500.0,0.00010958,2]
[323357553,1713912644071,-500.0,0.00010958,2]
[323357554,1713912644081,-500.0,0.00010958,2]
[323357555,1713912644091,-500.0,0.00010958,2]
[323357556,1713912644100,-500.0,0.00010958,2]
[323357557,1713912644109,-500.0,0.00010958,2]
[323357558,1713912644119,-500.0,0.00010958,2]
[323357559,1713912644128,-500.0,0.00010958,2]
[323357560,1713912644137,-500.0,0.00010958,2]
[323357561,1713912644146,-500.0,0.00010958,2]
[323357562,1713912644155,-500.0,0.00010958,2]
[323357563,1713912644165,-526.86,0.00010958,2]
[323357564,1713912644173,-500.0,0.00010958,2]
[323357565,1713912644183,-500.0,0.00010958,2]
[323357566,1713912644192,-500.0,0.00010958,2]
[323357567,1713912644202,-500.0,0.00010958,2]
[323357568,1713912644211,-529.21,0.00010958,2]
[323357569,1713912644220,-500.0,0.00010958,2]
[323357570,1713912644229,-500.0,0.00010958,2]
[323357571,1713912644238,-500.0,0.00010958,2]
[323357572,1713912644248,-500.0,0.00010958,2]
[323357573,1713912644257,-500.0,0.00010958,2]
[323357574,1713912644266,-500.0,0.00010958,2]
[323357575,1713912644275,-500.0,0.00010958,2]
[323357576,1713912644284,-500.0,0.00010958,2]
[323357577,1713912644293,-500.0,0.00010958,2]
[323357578,1713912644303,-500.0,0.00010958,2]
[323357579,1713912644312,-500.0,0.00010958,2]
[323357580,1713912644322,-500.0,0.00010958,2]
[323357581,1713912644331,-500.0,0.00010958,2]
[323357582,1713912644341,-500.0,0.00010958,2]
[323357583,1713912644350,-500.0,0.00010958,2]
[323357584,1713912644359,-500.0,0.00010958,2]
[323357585,1713912644368,-500.0,0.00010958,2]
[323357586,1713912644378,-500.0,0.00010958,2]
[323357587,1713912644387,-500.0,0.00010958,2]
[323357588,1713912644397,-577.73,0.00010958,2]
[323357589,1713912644407,-500.0,0.00010958,2]
[323357590,1713912644416,-500.0,0.00010958,2]
[323357591,1713912644426,-500.0,0.00010958,2]
[323357592,1713912644435,-500.0,0.00010958,2]
[323357593,1713912644445,-500.0,0.00010958,2]
[323357594,1713912644454,-500.0,0.00010958,2]
[323357595,1713912644463,-500.0,0.00010958,2]
[323357596,1713912644472,-500.0,0.00010958,2]
[323357597,1713912644481,-500.0,0.00010958,2]
[323357598,1713912644490,-500.0,0.00010958,2]
[323357599,1713912644499,-500.0,0.00010958,2]
[323357600,1713912644508,-500.0,0.00010958,2]
[323357601,1713912644518,-500.0,0.00010958,2]
[323357602,1713912644527,-500.0,0.00010958,2]
[323357603,1713912644537,-500.0,0.00010958,2]
[323357604,1713912644546,-500.0,0.00010958,2]
[323357605,1713912644555,-500.0,0.00010958,2]
[323357606,1713912644564,-500.0,0.00010958,2]
[323357607,1713912644575,-500.0,0.00010958,2]
[323357608,1713912644585,-572.35,0.00010958,2]
[323357609,1713912644594,-620.93,0.00010958,2]
[323357610,1713912644603,-500.0,0.00010958,2]
[323357611,1713912644612,-500.0,0.00010958,2]
[323357612,1713912644622,-500.0,0.00010958,2]
[323357613,1713912644631,-500.0,0.00010958,2]
[323357614,1713912644641,-500.0,0.00010958,2]
[323357615,1713912644650,-500.0,0.00010958,2]
[323357616,1713912644660,-500.0,0.00010958,2]
[323357617,1713912644669,-500.0,0.00010958,2]
[323357618,1713912644678,-500.0,0.00010958,2]
[323357619,1713912644688,-500.0,0.00010958,2]
[323357620,1713912644698,-500.0,0.00010958,2]
[323357621,1713912644709,-500.0,0.00010958,2]
[323357622,1713912644718,-538.6,0.00010958,2]
[323357623,1713912644728,-500.0,0.00010958,2]
[323357624,1713912644738,-500.0,0.00010958,2]
[323357625,1713912644747,-500.0,0.00010958,2]
[323357626,1713912644756,-500.0,0.00010958,2]
[323357627,1713912644766,-500.0,0.00010958,2]
[323357628,1713912644775,-500.0,0.00010958,2]
[323357629,1713912644785,-500.0,0.00010958,2]
[323357630,1713912644794,-500.0,0.00010958,2]
[323357631,1713912644803,-581.63220782,0.00010958,2]
[323357632,1713912644812,-500.0,0.00010958,2]
[323357633,1713912644822,-500.0,0.00010958,2]
[323357634,1713912644831,-500.0,0.00010958,2]
[323357635,1713912644841,-500.0,0.00010958,2]
[323357636,1713912644850,-500.0,0.00010958,2]
[323357637,1713912644859,-500.0,0.00010958,2]
[323357638,1713912644869,-500.0,0.00010958,2]
[323357639,1713912644878,-500.0,0.00010958,2]
[323357640,1713912644888,-500.0,0.00010958,2]
[323357641,1713912644898,-640.85,0.00010958,2]
[323357642,1713912644907,-500.0,0.00010958,2]
[323357643,1713912644917,-500.0,0.00010958,2]
[323357644,1713912644927,-500.0,0.00010958,2]
[323357645,1713912644936,-612.46826292,0.00010958,2]
[323357646,1713912644946,-500.0,0.00010958,2]
[323357647,1713912644958,-500.0,0.00010958,2]
[323357648,1713912644967,-500.0,0.00010958,2]
[323357649,1713912644977,-552.09,0.00010958,2]
[323357650,1713912644987,-545.95,0.00010958,2]
[323357651,1713912644997,-500.0,0.00010958,2]
[323357652,1713912645007,-629.04,0.00010958,2]
[323357653,1713912645017,-605.98,0.00010958,2]
[323357654,1713912645026,-500.0,0.00010958,2]
[323357655,1713912645036,-500.0,0.00010958,2]
[323357656,1713912645045,-500.0,0.00010958,2]
[323357657,1713912645055,-643.12,0.00010958,2]
[323357658,1713912645065,-500.0,0.00010958,2]
[323357659,1713912645075,-500.0,0.00010958,2]
[323357660,1713912645084,-500.0,0.00010958,2]
[323357661,1713912645093,-500.0,0.00010958,2]
[323357662,1713912645102,-613.19,0.00010958,2]
[323357663,1713912645111,-500.0,0.00010958,2]
[323357664,1713912645121,-500.0,0.00010958,2]
[323357665,1713912645130,-500.0,0.00010958,2]
[323357666,1713912645139,-500.0,0.00010958,2]
[323357667,1713912645149,-500.0,0.00010958,2]
[323357668,1713912645158,-623.66,0.00010958,2]
[323357669,1713912645167,-504.67,0.00010958,2]
[323357670,1713912645177,-500.0,0.00010958,2]
[323357671,1713912645186,-500.0,0.00010958,2]
[323357672,1713912645196,-500.0,0.00010958,2]
[323357673,1713912645206,-500.0,0.00010958,2]
[323357674,1713912645216,-500.0,0.00010958,2]
[323357675,1713912645226,-500.0,0.00010958,2]
[323357676,1713912645235,-591.4,0.00010958,2]
[323357677,1713912645245,-500.0,0.00010958,2]
[323357678,1713912645254,-500.0,0.00010958,2]
[323357679,1713912645264,-680.77,0.00010958,2]
[323357680,1713912645274,-500.0,0.00010958,2]
[323357681,1713912645283,-500.0,0.00010958,2]
[323357682,1713912645292,-500.0,0.00010958,2]
[323357683,1713912645302,-500.0,0.00010958,2]
[323357684,1713912645312,-500.0,0.00010958,2]
[323357685,1713912645322,-500.0,0.00010958,2]
[323357686,1713912645332,-500.0,0.00010958,2]
[323357687,1713912645341,-500.0,0.00010958,2]
[323357688,1713912645351,-500.0,0.00010958,2]
[323357689,1713912645361,-605.63,0.00010958,2]
[323357690,1713912645370,-500.0,0.00010958,2]
[323357691,1713912645379,-500.0,0.00010958,2]
[323357692,1713912645389,-504.14787056,0.00010958,2]
[323357693,1713912645398,-500.0,0.00010958,2]
[323357694,1713912645407,-500.0,0.00010958,2]
[323357695,1713912645418,-500.0,0.00010958,2]
[323357696,1713912645427,-500.0,0.00010958,2]
[323357697,1713912645437,-500.0,0.00010958,2]
[323357698,1713912645446,-502.64619295,0.00010958,2]
[323357699,1713912645455,-500.0,0.00010958,2]
[323357700,1713912645465,-500.0,0.00010958,2]
[323357701,1713912645475,-500.0,0.00010958,2]
[323357702,1713912645484,-500.0,0.00010958,2]
[323357703,1713912645493,-500.0,0.00010958,2]
[323357704,1713912645503,-500.0,0.00010958,2]
[323357705,1713912645513,-501.5795432,0.00010958,2]
[323357706,1713912645522,-500.0,0.00010958,2]
[323357707,1713912645531,-500.0,0.00010958,2]
[323357708,1713912645782,-500.0,0.00010958,2]
[323357709,1713912645792,-500.0,0.00010958,2]
[323357710,1713912645802,-501.9350165,0.00010958,2]
[323357711,1713912645811,-500.0,0.00010958,2]
[323357712,1713912645821,-500.0,0.00010958,2]
[323357713,1713912645831,-654.22,0.00010958,2]
[323357714,1713912645840,-503.35597589,0.00010958,2]
[323357715,1713912645849,-501.82609453,0.00010958,2]
[323357716,1713912645859,-500.0,0.00010958,2]
[323357717,1713912645868,-500.0,0.00010958,2]
[323357718,1713912645878,-500.0,0.00010958,2]
[323357719,1713912645888,-502.98376797,0.00010958,2]
[323357720,1713912645898,-500.0,0.00010958,2]
[323357721,1713912645907,-535.04,0.00010958,2]
[323357722,1713912645917,-500.0,0.00010958,2]
[323357723,1713912645927,-501.34543254,0.00010958,2]
[323357724,1713912645936,-500.0,0.00010958,2]
[323357725,1713912645946,-500.0,0.00010958,2]
[323357726,1713912645958,-615.13,0.00010958,2]
[323357727,1713912645968,-500.0,0.00010958,2]
[323357729,1713912645977,-501.52582648,0.00010958,2]
[323357731,1713912645987,-500.0,0.00010958,2]
[323357732,1713912645997,-538.29,0.00010958,2]
[323357733,1713912646007,-500.0,0.00010958,2]
[323357734,1713912646016,-500.0,0.00010958,2]
[323357735,1713912646026,-589.07,0.00010958,2]
[323357736,1713912646036,-500.0,0.00010958,2]
[323357737,1713912646045,-218.74433541,0.00010958,2]
[323357738,1713912646054,-500.0,0.00010958,2]
[323357740,1713912646063,-565.34,0.00010958,2]
[323357742,1713912646074,-500.0,0.00010958,2]
[323357744,1713912646084,-500.0,0.00010958,2]
[323357745,1713912646093,-500.0,0.00010958,2]
[323357747,1713912646102,-500.0,0.00010958,2]
[323357750,1713912646112,-701.05,0.00010958,2]
[323357751,1713912646121,-500.0,0.00010958,2]
[323357753,1713912646130,-501.82552468,0.00010958,2]
[323357754,1713912646139,-500.0,0.00010958,2]
[323357755,1713912646148,-500.0,0.00010958,2]
[323357756,1713912646157,-500.0,0.00010958,2]
[323357757,1713912646166,-500.0,0.00010958,2]
[323357758,1713912646175,-500.0,0.00010958,2]
[323357759,1713912646185,-500.0,0.00010958,2]
[323357760,1713912646193,-625.17,0.00010958,2]
[323357761,1713912646203,-500.0,0.00010958,2]
[323357762,1713912646212,-501.91,0.00010958,2]
[323357763,1713912646221,-500.0,0.00010958,2]
[323357764,1713912646230,-500.0,0.00010958,2]
[323357765,1713912646239,-500.0,0.00010958,2]
[323357766,1713912646249,-500.0,0.00010958,2]
[323357767,1713912646258,-500.0,0.00010958,2]
[323357768,1713912646266,-500.0,0.00010958,2]
[323357769,1713912646275,-500.0,0.00010958,2]
[323357770,1713912646285,-500.0,0.00010958,2]
[323357771,1713912646294,-500.0,0.00010958,2]
[323357772,1713912646303,-500.0,0.00010958,2]
[323357773,1713912646313,-500.0,0.00010958,2]
[323357774,1713912646322,-556.71524246,0.00010958,2]
[323357775,1713912646332,-500.0,0.00010958,2]
[323357776,1713912646341,-528.31,0.00010958,2]
[323357777,1713912646350,-544.36,0.00010958,2]
[323357778,1713912646360,-500.0,0.00010958,2]
[323357779,1713912646369,-500.0,0.00010958,2]
[323357780,1713912646378,-500.0,0.00010958,2]
[323357781,1713912646387,-500.0,0.00010958,2]
[323357782,1713912646396,-500.0,0.00010958,2]
[323357783,1713912646405,-500.0,0.00010958,2]
[323357784,1713912646414,-500.0,0.00010958,2]
[323357785,1713912646423,-581.38,0.00010958,2]
[323357786,1713912646432,-500.0,0.00010958,2]
[323357787,1713912646442,-500.0,0.00010958,2]
[323357788,1713912646451,-500.0,0.00010958,2]
[323357789,1713912646460,-500.0,0.00010958,2]
[323357790,1713912646469,-500.0,0.00010958,2]
[323357791,1713912646479,-500.0,0.00010958,2]
[323357792,1713912646488,-747.9,0.00010958,2]
[323357793,1713912646498,-500.0,0.00010958,2]
[323357794,1713912646507,-676.82,0.00010958,2]
[323357795,1713912646516,-500.0,0.00010958,2]
[323357796,1713912646526,-580.66,0.00010958,2]
[323357797,1713912646535,-153.41707949,0.00010958,2]
[323357798,1713912646544,-500.0,0.00010958,2]
[323357799,1713912646554,-646.07,0.00010958,2]
[323357800,1713912646563,-500.0,0.00010958,2]
[323357801,1713912646573,-500.0,0.00010958,2]
[323357802,1713912646581,-580.7,0.00010958,2]
[323357803,1713912646590,-449.96811448,0.00010958,2]
[323357804,1713912646599,-500.0,0.00010958,2]
[323357805,1713912646608,-500.0,0.00010958,2]
[323357807,1713912646617,-500.0,0.00010958,2]
[323357809,1713912646626,-554.21,0.00010958,2]
[323357811,1713912646636,-500.0,0.00010958,2]
[323357812,1713912646645,-500.0,0.00010958,2]
[323357813,1713912646653,-500.0,0.00010958,2]
[323357814,1713912646662,-500.0,0.00010958,2]
[323357815,1713912646671,-500.0,0.00010958,2]
[323357816,1713912646680,-500.0,0.00010958,2]
[323357817,1713912646689,-500.0,0.00010958,2]
[323357818,1713912646698,-500.0,0.00010958,2]
[323357819,1713912646708,-500.0,0.00010958,2]
[323357820,1713912646717,-500.0,0.00010958,2]
[323357821,1713912646726,-500.0,0.00010958,2]
[323357822,1713912646734,-500.0,0.00010958,2]
[323357823,1713912646743,-500.0,0.00010958,2]
[323357824,1713912646752,-500.0,0.00010958,2]
[323357825,1713912646761,-500.0,0.00010958,2]
[323357826,1713912646770,-500.0,0.00010958,2]
[323357827,1713912646779,-500.0,0.00010958,2]
[323357828,1713912646788,-810.28,0.00010958,2]
[323357829,1713912646797,-500.0,0.00010958,2]
[323357830,1713912646806,-500.0,0.00010958,2]
[323357831,1713912646815,-500.0,0.00010958,2]
[323357832,1713912646825,-500.0,0.00010958,2]
[323357833,1713912646834,-500.0,0.00010958,2]
[323357834,1713912646843,-500.0,0.00010958,2]
[323357835,1713912646853,-500.0,0.00010958,2]
[323357836,1713912646861,-500.0,0.00010958,2]
[323357837,1713912646871,-607.68,0.00010958,2]
[323357838,1713912646880,-552.91,0.00010958,2]
[323357839,1713912646889,-500.0,0.00010958,2]
[323357840,1713912646899,-500.0,0.00010958,2]
[323357841,1713912646908,-500.0,0.00010958,2]
[323357842,1713912646917,-500.0,0.00010958,2]
[323357843,1713912646926,-500.0,0.00010958,2]
[323357844,1713912646935,-500.0,0.00010958,2]
[323357845,1713912646944,-500.0,0.00010958,2]
[323357846,1713912646955,-547.51,0.00010958,2]
[323357847,1713912646965,-151.52633294,0.00010958,2]
[323357848,1713912646975,-619.62,0.00010958,2]
[323357849,1713912646983,-500.0,0.00010958,2]
[323357850,1713912646992,-500.0,0.00010958,2]
[323357851,1713912647002,-500.0,0.00010958,2]
[323357852,1713912647011,-500.0,0.00010958,2]
[323357853,1713912647020,-523.15,0.00010958,2]
[323357854,1713912647030,-500.0,0.00010958,2]
[323357855,1713912647040,-500.0,0.00010958,2]
[323357856,1713912647049,-500.0,0.00010958,2]
[323357857,1713912647058,-500.0,0.00010958,2]
[323357858,1713912647067,-500.0,0.00010958,2]
[323357859,1713912647077,-500.0,0.00010958,2]
[323357860,1713912647086,-500.0,0.00010958,2]
[323357861,1713912647095,-500.0,0.00010958,2]
[323357862,1713912647105,-500.0,0.00010958,2]
[323357863,1713912647139,-662.32,0.00010958,2]
[323357864,1713912647148,-542.05,0.00010958,2]
[323357865,1713912647157,-500.0,0.00010958,2]
[323357866,1713912647167,-500.0,0.00010958,2]
[323357867,1713912647176,-714.95,0.00010958,2]
[323357868,1713912647185,-500.0,0.00010958,2]
[323357869,1713912647195,-500.0,0.00010958,2]
[323357870,1713912647204,-500.0,0.00010958,2]
[323357871,1713912647214,-500.0,0.00010958,2]
[323357872,1713912647225,-500.0,0.00010958,2]
[323357873,1713912647234,-500.0,0.00010958,2]
[323357874,1713912647244,-500.0,0.00010958,2]
[323357875,1713912647254,-500.66125473,0.00010958,2]
[323357876,1713912647264,-500.0,0.00010958,2]
[323357877,1713912647274,-812.5,0.00010958,2]
[323357878,1713912647285,-500.0,0.00010958,2]
[323357879,1713912647295,-500.0,0.00010958,2]
[323357880,1713912647305,-547.34345617,0.00010958,2]
[323357881,1713912647316,-500.0,0.00010958,2]
[323357882,1713912647327,-571.74395856,0.00010958,2]
[323357883,1713912647336,-215.8,0.00010958,2]
[323357884,1713912647347,-768.68,0.00010958,2]
[323357885,1713912647358,-500.0,0.00010958,2]
[323357886,1713912647369,-500.0,0.00010958,2]
[323357887,1713912647378,-500.0,0.00010958,2]
[323357888,1713912647388,-500.0,0.00010958,2]
[323357889,1713912647399,-500.0,0.00010958,2]
[323357890,1713912647409,-500.0,0.00010958,2]
[323357891,1713912647418,-708.28,0.00010958,2]
[323357892,1713912647429,-500.0,0.00010958,2]
[323357893,1713912647439,-500.0,0.00010958,2]
[323357894,1713912647448,-500.0,0.00010958,2]
[323357895,1713912647457,-500.0,0.00010958,2]
[323357896,1713912647469,-500.0,0.00010958,2]
[323357897,1713912647478,-693.96,0.00010958,2]
[323357898,1713912647488,-500.0,0.00010958,2]
[323357899,1713912647498,-500.0,0.00010958,2]